[Event "Swedish-ch MK-Elit 2022"]
[Site "Uppsala"]
[Date "2022.07.03"]
[Round "2.2"]
[White "Furhoff, Johan"]
[Black "Trost, Edvin"]
[Result "0-1"]
[ECO "B32"]
[WhiteElo "2348"]
[BlackElo "2345"]
[Annotator "TA"]
[PlyCount "58"]
[EventDate "2022.07.01"]
[EventType "tourn"]
[EventCountry "SWE"]
[SourceTitle "playchess.com"]
[Source "ChessBase"]
[SourceQuality "1"]
[TimeControl "40/5400+30:1800+30"]

{[%evp 14,58,14,21,24,15,29,0,0,0,24,6,12,11,8,-189,-191,-193,-180,-175,-180,-454,-452,-435,-435,-438,-407,-408,0,0,0,-286,-222,-382,-307,-270,-273,-773,-736,-991,-963,-829,-901,-707,-312,-304,-283]} 1. e4 {[%emt 0:00:09]} c5 {[%emt 0:01:38]} 2. Nf3 {[%emt 0:00:09][%cal Bg1f3,Bf3d4,Bd4b5,Bb5a3][%mdl 32]} Nc6 {[%emt 0:00:40]} 3. d4 {[%emt 0:00:14]} cxd4 {[%emt 0:00:06]} 4. Nxd4 {[%emt 0:00:07]} e5 {[%emt 0:00:56]} 5. Nb5 {[%emt 0:00:17]} d6 {[%emt 0:00:11]} 6. c4 {[%emt 0:00:36]} Be6 $1 {[%emt 0:00:41][%mdl 4] is recently more successful than 6...Be7.} 7. N1c3 {[%emt 0:01:48]} a6 {[%emt 0:03:01]} 8. Na3 {[%emt 0:00:12]} g6 {[%emt 0:02:02] B32: Sicilian: Löwenthal and Kalashnikov Variations.} 9. Be2 {[%emt 0:18:04]} Bg7 {[%emt 0:08:01] [#]} 10. Nd5 $146 {[%emt 0:13:24]} ({Predecessor:} 10. O-O Rc8 11. Nc2 Nf6 12. Be3 O-O 13. b3 b5 14. cxb5 Ne7 15. Na4 Nxe4 16. bxa6 {0-1 (37) Chigaev,M (2639)-Henriquez Villagra,C (2608) Riga 2021}) 10... Nf6 {[%emt 0:11:00] The position is equal.} 11. Bg5 {[%emt 0:06:47]} h6 {[%emt 0:07:56]} 12. Nxf6+ {[%emt 0:14:45]} (12. Be3 {is interesting.} Qa5+ 13. Bd2 Qd8 14. f3) 12... Bxf6 {[%emt 0:01:52]} 13. Bxf6 {[%emt 0:00:05]} Qxf6 {[%emt 0:00:04]} 14. Qxd6 $2 {[%emt 0:00:05]} (14. O-O $11) 14... Rd8 $19 {[%emt 0:03:19]} 15. Qc5 {[%emt 0:00:24]} Nd4 {[%emt 0:01:30][%cal Bc6d4,Bd4f3,Bf3d2][%mdl 32] Inhibits Nc2. Threatens to win with ...Qg5.} 16. Bd1 {[%emt 0:03:59]} Qg5 $1 {[%emt 0:04:25]} (16... Qf4 17. O-O $14) 17. Ba4+ $2 {[%emt 0:08:25]} (17. O-O Bh3 18. g3) 17... b5 $1 {[%emt 0:07:29]} 18. cxb5 {[%emt 0:04:26] [#]} Nf3+ $1 {[%emt 0:03:17][%mdl 512]} 19. Kf1 {[%emt 0:00:23]} (19. gxf3 $2 Qd2+ 20. Kf1 Bh3+ 21. Kg1 Qg5#) 19... Nd2+ {[%emt 0:02:01]} 20. Ke1 {[%emt 0:00:09]} f5 $2 {[%emt 0:06:16]} ({Black should play} 20... Rd4 $1 $19 {[%cal Rd4a4]} 21. bxa6+ (21. Qc6+ $2 Kf8 $19) 21... Rxa4) 21. exf5 $11 {[%emt 0:07:36]} gxf5 $40 {[%emt 0:07:21][%mdl 128] Black attacks.} 22. Bd1 $2 {[%emt 0:03:54][%mdl 8192] [#]} (22. Qxe5 $2 Kf7 23. Qc7+ (23. bxa6 $2 Ne4 $19) 23... Rd7 $19) (22. bxa6+ $11 Kf7 23. Bc6 (23. Qxe5 $2 Ne4 $19)) 22... Rd5 $1 $19 {[%emt 0:14:31]} (22... Ne4 23. Qe3 Qxe3+ 24. fxe3 $11) 23. Qc6+ {[%emt 0:04:32]} (23. Qb6 {was the only chance.} Kf7 24. g3) 23... Kf7 {[%emt 0:00:01][%cal Be8f7,Bf7f6,Bf6f5][%mdl 32]} 24. g3 {[%emt 0:00:21]} Qe7 {[%emt 0:01:54] aiming for ...Rc8. Really sharp!} ({Inferior is} 24... Ne4 25. Qc7+ Kf6 26. f4 exf4 27. Qxf4 $17) 25. Bh5+ $2 {[%emt 0:01:01] [#]} (25. Nc2 Rc8 26. Qxa6) 25... Kf6 $1 {[%emt 0:02:21] Hoping for ...Rc8.} 26. Qc3 {[%emt 0:07:16]} Rc8 {[%emt 0:00:30]} 27. Qe3 {[%emt 0:00:18]} f4 {[%emt 0:02:39]} 28. gxf4 {[%emt 0:01:37]} Qb4 {[%emt 0:02:16]} (28... exf4 $142 29. Qxf4+ Kg7 30. Rg1+ Bg4+ 31. Qe3 Nf3+ 32. Kf1 Nxh2+ 33. Kg2 Qxe3 34. fxe3 Rxh5 35. bxa6 Rf8) 29. f5 {[%emt 0:03:18]} (29. fxe5+ Rxe5 30. Qxe5+ Kxe5 31. h4 Nb1+ 32. Kf1 Rc1+ 33. Kg2 Bd5+ 34. f3 Qd2+ 35. Kg3 Rxh1) 29... Kxf5 {[%emt 0:02:52] Weighted Error Value: White=0.67/Black=0.37} ({Don't blunder} 29... Nc4+ $2 30. Qc3 Qxc3+ 31. bxc3 $19) 0-1

[Event "Swedish-ch MK-Elit 2022"]
[Site "Uppsala"]
[Date "2022.07.03"]
[Round "2.3"]
[White "Von Bahr, Oskar"]
[Black "Wiedenkeller, Michael"]
[Result "1/2-1/2"]
[ECO "C67"]
[WhiteElo "2386"]
[BlackElo "2437"]
[Annotator "TA"]
[PlyCount "51"]
[EventDate "2022.07.01"]
[EventType "tourn"]
[EventCountry "SWE"]
[SourceTitle "playchess.com"]
[Source "ChessBase"]
[SourceQuality "1"]
[TimeControl "40/5400+30:1800+30"]

{[%evp 18,51,16,12,24,16,16,17,25,0,0,0,-2,-15,39,31,32,23,20,27,25,19,27,35,26,0,0,0,0,0,0,0,0,0,0,0]} 1. e4 {[%emt 0:00:13]} e5 {[%emt 0:00:42]} 2. Nf3 {[%emt 0:00:05]} Nc6 {[%emt 0:00:08]} 3. Bb5 {[%emt 0:00:05]} Nf6 {[%emt 0:00:36]} 4. O-O {[%emt 0:00:44][%cal Bh1f1,Bf1e1,Be1e5][%mdl 32]} Nxe4 {[%emt 0:01:01]} 5. Re1 {[%emt 0:00:57]} Nd6 {[%emt 0:00:54]} 6. Nxe5 {[%emt 0:00:11]} Be7 {[%emt 0:00:19]} 7. Bf1 {[%emt 0:00:17]} Nxe5 {[%emt 0:03:08]} 8. Rxe5 {[%emt 0:00:58]} O-O {[%emt 0:00:50]} 9. d4 {[%emt 0:00:36]} Bf6 {[%emt 0:05:33]} 10. Re1 {[%emt 0:00:10]} Re8 {[%emt 0:05:33] C67: Ruy Lopez: Berlin Defence: 4 0-0 Nxe4.} 11. Bf4 {[%emt 0:00:50]} Rxe1 {[%emt 0:14:24]} 12. Qxe1 {[%emt 0:00:39]} Ne8 {[%emt 0:12:14]} 13. Nc3 {[%emt 0:00:27]} Bxd4 {[%emt 0:04:29]} 14. Nd5 {[%emt 0:00:39] [#] Threatens to win with Qe4.} d6 {[%emt 0:17:29]} 15. Bg5 {[%emt 0:01:12]} Bf6 {[%emt 0:06:56]} ({Black should play} 15... f6 $11 16. Be3 Bxb2) 16. Bxf6 {[%emt 0:02:37]} Nxf6 {[%emt 0:00:45]} 17. Nxf6+ {[%emt 0:00:19]} gxf6 {[%emt 0:00:06]} 18. Qe4 {[%emt 0:03:30]} f5 {[%emt 0:05:22]} 19. Qf3 {[%emt 0:09:43]} Qf6 {[%emt 0:05:28]} 20. Re1 {[%emt 0:04:34] [#] Black must now prevent Re8+.} Kf8 {[%emt 0:01:12] [#] Prevents Re8+.} 21. Bb5 $146 {[%emt 0:27:53]} ({Predecessor:} 21. b3 c6 22. Qf4 Bd7 23. Rd1 Ke7 24. g3 b6 {½-½ (24) Solak,D (2635)-Georgiev,K (2608) Kragujevac 2016}) 21... c6 {[%emt 0:00:13] The position is equal.} 22. Bxc6 {[%emt 0:01:19]} bxc6 {[%emt 0:00:08]} 23. Qxc6 {[%emt 0:00:25]} Rb8 {[%emt 0:00:38]} 24. Qc7 {[%emt 0:04:51]} Ra8 {[%emt 0:00:44] And now ...Kg7 would win.} 25. Qc6 {[%emt 0:00:16]} Rb8 {[%emt 0:00:17] ...Kg7 is the strong threat.} 26. Qc7 {[%emt 0:03:29][%csl LRa7,LRb8] Weighted Error Value: White=0.05 (flawless) /Black=0.09 (flawless)} 1/2-1/2

[Event "Swedish-ch MK-Elit 2022"]
[Site "Uppsala"]
[Date "2022.07.03"]
[Round "2.4"]
[White "Johansson, Jan"]
[Black "Thorn, Eric"]
[Result "1-0"]
[ECO "A43"]
[WhiteElo "2306"]
[BlackElo "2366"]
[Annotator "TA"]
[PlyCount "163"]
[EventDate "2022.07.01"]
[EventType "tourn"]
[EventCountry "SWE"]
[SourceTitle "playchess.com"]
[Source "ChessBase"]
[SourceQuality "1"]
[TimeControl "40/5400+30:1800+30"]

{[%evp 9,163,2,0,7,8,5,16,17,47,11,43,36,51,41,95,73,72,83,68,69,135,95,183,129,167,156,163,154,274,262,278,271,233,217,265,260,250,225,280,240,253,225,264,222,325,130,189,200,193,186,189,189,200,200,200,186,226,239,249,247,264,236,270,243,343,343,457,290,274,263,286,0,243,248,251,0,237,247,240,251,289,266,315,317,336,274,388,390,426,433,429,403,518,435,423,404,429,400,412,415,484,494,670,670,623,656,915,471,454,464,761,839,798,754,1295,1387,1251,1152,6518,5405,3956,2524,815,95,97,111,97,90,29961,29956,1761,33,33,33,33,33,33,33,33,33,33,33,33,33,33,33,33,33,33,33,29986,29987,29987,29988,29988,29989]} 1. d4 {[%emt 0:00:55]} Nf6 {[%emt 0:00:07]} 2. Nf3 {[%emt 0:00:17]} c5 {[%emt 0:00:07]} 3. d5 {[%emt 0:01:09]} b5 {[%emt 0:00:47]} 4. a4 {[%emt 0:10:25]} b4 {[%emt 0:00:21]} 5. Bg5 {[%emt 0:03:35]} g6 {[%emt 0:00:50]} 6. Nbd2 {[%emt 0:12:19] A43: Schmid Benoni.} Bg7 {[%emt 0:06:20]} 7. e4 {[%emt 0:00:25][%cal Od5d6]} O-O {[%emt 0:03:35]} (7... h6 $5 {[%cal Rh6g5]} 8. Be3 d6 $11) 8. Bd3 {[%emt 0:09:49] [#] The position is equal.} Ba6 $146 {[%emt 0:12:41]} ({Predecessor:} 8... d6 9. Nc4 h6 10. Bh4 Nbd7 11. Nfd2 Nb6 12. O-O e6 13. dxe6 Bxe6 14. Re1 Qc7 {0-1 (44) Indjic,A (2607)-Salem,A (2682) Krasnaya Polyana 2021}) 9. O-O {[%emt 0:14:18]} Qc8 {[%emt 0:19:58]} (9... c4 $5 10. Bxc4 (10. Nxc4 Bxc4 11. Bxc4 Nxe4 $11) 10... Bxc4 11. Nxc4 Nxe4 $14) 10. Re1 {[%emt 0:07:32]} c4 {[%emt 0:05:23]} 11. Bf1 {[%emt 0:05:05]} e6 {[%emt 0:12:06]} (11... Re8 $14) 12. Bxf6 $16 {[%emt 0:07:42]} Bxf6 {[%emt 0:00:12]} 13. e5 {[%emt 0:00:04]} Bg7 {[%emt 0:00:39]} 14. Ne4 {[%emt 0:00:06]} Qc7 {[%emt 0:07:21]} (14... c3 $1 $14) 15. Qd4 $36 {[%emt 0:02:20][%mdl 2048] And now Nf6+ would win. White has strong initiative. White is more active.} exd5 {[%emt 0:09:45] [#]} (15... c3 $16) 16. Qxd5 {[%emt 0:00:30]} (16. Nf6+ $1 $18 Bxf6 17. exf6) 16... Nc6 {[%emt 0:08:54][%cal Rc6e5]} 17. Nc5 {[%emt 0:00:15] Pair of Knights!} (17. Bxc4 $6 Bxc4 18. Qxc4 Bxe5 $14) 17... Qa5 {[%emt 0:01:41] [#]} 18. Rad1 $1 {[%emt 0:03:09]} Ne7 {[%emt 0:06:40]} (18... Rac8 $16 {keeps fighting.} 19. Nxa6 (19. Bxc4 $2 Bxc4 20. Qxc4 Nxe5 $19) (19. Nxd7 Qxd5 20. Rxd5 Rfd8 $16) 19... Qxa6) 19. Qd6 $18 {[%emt 0:01:19]} Nf5 {[%emt 0:00:53]} 20. Qxa6 {[%emt 0:00:15]} Qxc5 {[%emt 0:00:01]} 21. Bxc4 {[%emt 0:00:22]} Rac8 {[%emt 0:01:34]} 22. Bb3 {[%emt 0:00:20]} Rc6 {[%emt 0:00:56]} 23. Qd3 {[%emt 0:02:21]} Rc7 {[%emt 0:00:05]} 24. Qe4 {[%emt 0:01:09]} Qe7 {[%emt 0:00:28]} 25. Rd5 {[%emt 0:07:32]} Re8 {[%emt 0:00:28]} 26. Rb5 {[%emt 0:01:39]} d6 {[%emt 0:00:55]} (26... Bf8 {was necessary.} 27. Qd5 Ng7 28. Rxb4 Ne6) 27. exd6 {[%emt 0:06:01]} (27. Rxb4 dxe5 28. c3 Rd7 $16) (27. e6 $18 {is the precise move to win.} fxe6 28. Bxe6+ Qxe6 29. Qxe6+ Rxe6 30. Rxe6 Bxb2 31. Rxb4) 27... Qxe4 {[%emt 0:00:37]} (27... Nxd6 $16 {was worth a try.} 28. Qxe7 (28. Qxb4 Qxe1+ 29. Nxe1 Bc3 $15) 28... Rcxe7 29. Rxe7 Rxe7) 28. Rxe4 {[%emt 0:00:07]} Nxd6 {[%emt 0:00:28]} 29. Rxe8+ Nxe8 {[%emt 0:00:01]} 30. Rxb4 {[%emt 0:00:57]} Kf8 {[%emt 0:00:31]} 31. c3 {[%emt 0:01:06]} Nd6 {[%emt 0:00:52]} 32. Kf1 {[%emt 0:00:20]} a5 {[%emt 0:00:38]} 33. Rb8+ {[%emt 0:00:11]} Ke7 {[%emt 0:00:06]} 34. Ke2 {[%emt 0:00:53]} Nb7 {[%emt 0:00:56]} 35. Bc2 {[%emt 0:02:13]} h6 {[%emt 0:00:25]} 36. Ra8 {[%emt 0:00:29]} Kd6 {[%emt 0:00:32]} (36... Nd6 $142 37. Ne1 (37. Rxa5 Rb7 $18) 37... Nc4) 37. Nd2 {[%emt 0:00:34]} Kc5 {[%emt 0:00:33]} 38. Ne4+ {[%emt 0:00:48]} Kb6 {[%emt 0:00:31]} 39. Re8 {[%emt 0:00:53] Prevents Re7.} Kc6 {[%emt 0:00:28]} 40. Ra8 $2 {[%emt 0:00:22]} ({White should play} 40. Nd2 $18) 40... Re7 $2 {[%emt 0:00:30]} (40... Kb6 $1 $11 {and Black stays safe.}) 41. Kf3 {[%emt 0:05:19]} Rd7 {[%emt 0:10:15]} 42. Ke2 {[%emt 0:06:14]} Re7 $1 {[%emt 0:02:25]} 43. Ra6+ {[%emt 0:02:35]} Kc7 {[%emt 0:01:43]} 44. Kd1 {[%emt 0:00:25]} Be5 {[%emt 0:05:27]} 45. g3 {[%emt 0:00:13]} Kc8 {[%emt 0:01:55]} 46. f4 {[%emt 0:03:56]} Bc7 {[%emt 0:00:41]} 47. Nf6 {[%emt 0:02:25]} h5 {[%emt 0:06:04]} (47... Nc5 {was called for.}) 48. Bb3 {[%emt 0:02:43]} Nc5 {[%emt 0:02:05]} 49. Ra8+ {[%emt 0:00:42]} Bb8 {[%emt 0:00:05]} 50. Bc4 {[%emt 0:00:40]} Kb7 {[%emt 0:04:17]} 51. Bd5+ {[%emt 0:00:35]} Kc8 {[%emt 0:00:32]} 52. Rxa5 {[%emt 0:01:16]} Nd3 {[%emt 0:00:16]} 53. Rb5 {[%emt 0:03:18]} Ba7 {[%emt 0:00:29]} 54. a5 {[%emt 0:01:11][%cal Ba4a5,Ba5a6][%mdl 32]} Bg1 {[%emt 0:00:24]} 55. a6 {[%emt 0:00:18]} Nf2+ {[%emt 0:00:51]} 56. Kd2 {[%emt 0:00:58]} Ng4 {[%emt 0:00:20]} 57. Bb7+ {[%emt 0:01:16]} Kb8 {[%emt 0:00:36]} 58. Bf3+ {[%emt 0:01:17]} Ka7 {[%emt 0:00:20]} 59. Bxg4 {[%emt 0:02:34] Strongly threatening Bc8.} hxg4 {[%emt 0:00:01]} (59... Kxa6 $142 60. Re5 Rxe5 61. Bc8+ Kb6 62. fxe5 Bxh2) 60. Rb7+ {[%emt 0:01:29]} Rxb7 {[%emt 0:00:08]} 61. axb7 {[%emt 0:00:41]} Bxh2 {[%emt 0:00:32]} 62. Nxg4 {[%emt 0:00:15]} Bxg3 {[%emt 0:00:06][%mdl 4096] Endgame KB-KN} 63. Ke3 {[%emt 0:00:06]} f5 {[%emt 0:00:39]} 64. Kf3 {[%emt 0:00:11]} Bh4 {[%emt 0:01:03]} 65. Ne5 {[%emt 0:01:08]} g5 {[%emt 0:00:04]} 66. fxg5 $2 {[%emt 0:00:17]} (66. b8=Q+ $18 Kxb8 67. Nc6+ Kc7 68. Nd4 gxf4 69. Kxf4) 66... Bxg5 $16 {[%emt 0:00:09]} 67. Nf7 {[%emt 0:00:11]} Bc1 {[%emt 0:00:19]} 68. b3 {[%emt 0:00:08] White wants to mate with Nd6.} Bb2 $2 {[%emt 0:01:17][%mdl 8192]} (68... Kxb7 $16 69. Nd6+ Kc6 70. Nxf5 Bb2) 69. c4 {[%emt 0:00:09]} Kxb7 {[%emt 0:00:05]} 70. Nd6+ $2 {[%emt 0:01:10]} ({White must play} 70. Kf4 $18 Kc6 71. Ne5+ (71. Kxf5 Kc5 $11) 71... Kc7 72. Nd3) 70... Kc6 $14 {[%emt 0:00:03]} 71. Nxf5 {[%emt 0:00:17] Threatening mate with Ne3.} Kc5 {[%emt 0:00:57]} 72. Ke4 {[%emt 0:00:07] Hoping for Kd3.} Kb4 {[%emt 0:01:07]} 73. Nd4 {[%emt 0:00:08] Kd3 is the strong threat.} Bc3 {[%emt 0:01:07]} 74. Kd5 {[%emt 0:01:15]} Bd2 $1 {[%emt 0:00:40]} 75. c5 {[%emt 0:01:28]} Bf4 {[%emt 0:00:04]} 76. c6 {[%emt 0:01:14]} Bb8 {[%emt 0:00:35]} 77. Ne6 {[%emt 0:00:29]} Kxb3 {[%emt 0:00:17]} 78. Kc5 {[%emt 0:00:02]} Kc3 {[%emt 0:00:29]} 79. Kb6 {[%emt 0:00:29]} Kc4 $2 {[%emt 0:00:25][%mdl 8192]} (79... Kd3 $14) 80. Nc7 {[%emt 0:00:06] White mates.} Kd4 {[%emt 0:01:05]} 81. Kb7 {[%emt 0:00:09]} Kc5 {[%emt 0:00:09]} 82. Na6+ {[%emt 0:00:05] Weighted Error Value: White=0.35/Black=0.39} 1-0

[Event "Swedish-ch MK-Elit 2022"]
[Site "Uppsala"]
[Date "2022.07.03"]
[Round "2.5"]
[White "Cederstam, Carl"]
[Black "Andersson, Tommy"]
[Result "1/2-1/2"]
[ECO "B84"]
[WhiteElo "2332"]
[BlackElo "2384"]
[Annotator "TA"]
[PlyCount "92"]
[EventDate "2022.07.01"]
[EventType "tourn"]
[EventCountry "SWE"]
[SourceTitle "playchess.com"]
[Source "ChessBase"]
[SourceQuality "1"]
[TimeControl "40/5400+30:1800+30"]

{[%evp 17,92,0,8,0,4,12,0,12,12,15,18,15,22,12,20,15,9,0,27,31,25,14,22,0,0,0,0,2,5,-13,0,0,0,0,0,0,0,0,0,0,0,0,0,0,0,0,0,-58,-56,-186,-170,-317,-329,-321,-302,-2516,-10,-647,0,0,0,-19,0,0,0,0,0,0,0,0,0,0,0,0,0,0,0]} 1. e4 {[%emt 0:00:25]} c5 {[%emt 0:00:06]} 2. Nf3 {[%emt 0:00:07]} d6 {[%emt 0:00:09]} 3. d4 {[%emt 0:00:08]} cxd4 {[%emt 0:00:06]} 4. Nxd4 {[%emt 0:00:09]} Nf6 {[%emt 0:00:06]} 5. Nc3 {[%emt 0:00:09]} a6 {[%emt 0:00:07]} 6. Be2 {[%emt 0:00:09]} e6 {[%emt 0:01:52]} 7. O-O {[%emt 0:00:31]} Be7 {[%emt 0:00:17]} 8. Be3 {[%emt 0:01:09]} O-O {[%emt 0:01:42]} 9. Qd2 {[%emt 0:03:55]} Qc7 {[%emt 0:01:52]} 10. a4 {[%emt 0:05:44] B84: Sicilian Scheveningen: 6 Be2 a6, lines without early Be3.} b6 {[%emt 0:03:25]} 11. f4 {[%emt 0:03:09]} Bb7 {[%emt 0:01:53]} 12. Bf3 $1 {[%emt 0:02:14]} Nbd7 {[%emt 0:06:56][%cal Bb8d7,Bd7c5,Bc5e4][%mdl 32]} 13. g4 {[%emt 0:01:53]} Nc5 {[%emt 0:38:18]} 14. Qg2 {[%emt 0:01:23]} d5 $1 {[%emt 0:24:00]} 15. exd5 {[%emt 0:26:24]} Nxd5 {[%emt 0:01:10]} 16. Nxd5 {[%emt 0:01:30]} exd5 {[%emt 0:00:47]} 17. Nf5 {[%emt 0:12:31]} Ne4 {[%emt 0:08:19] [#]} 18. Nxe7+ $146 {[%emt 0:23:02]} ({Predecessor:} 18. Bxe4 dxe4 19. Nxe7+ Qxe7 20. f5 f6 21. Rfd1 b5 22. axb5 axb5 23. Rxa8 Bxa8 24. Qe2 {1-0 (53) Moskalenko,A (2514)-Gordievsky,D (2611) Chess.com INT 2017}) 18... Qxe7 {[%emt 0:00:22]} 19. Bd4 {[%emt 0:00:45]} b5 {[%emt 0:00:39]} 20. axb5 {[%emt 0:01:23]} axb5 {[%emt 0:00:09]} 21. Qe2 {[%emt 0:00:43]} Bc6 {[%emt 0:03:01]} 22. Qe3 {[%emt 0:01:43]} Rfe8 {[%emt 0:00:14]} 23. b3 {[%emt 0:03:56]} Qd7 {[%emt 0:00:43]} 24. Rxa8 {[%emt 0:00:32]} Bxa8 {[%emt 0:00:41]} 25. Re1 {[%emt 0:05:17]} h6 {[%emt 0:01:10]} 26. Re2 {[%emt 0:01:51]} Bc6 {[%emt 0:00:19]} 27. Bb2 {[%emt 0:00:18]} f6 {[%emt 0:00:45]} 28. Qd4 {[%emt 0:00:28]} Qc7 {[%emt 0:00:27]} 29. Bc1 {[%emt 0:00:59]} Kh7 {[%emt 0:00:39]} 30. Kg2 {[%emt 0:00:41]} Bb7 {[%emt 0:00:26]} 31. Qd3 {[%emt 0:00:49]} Qc6 {[%emt 0:02:40]} 32. Bb2 {[%emt 0:01:33]} (32. Qd4 $11) 32... b4 $1 $15 {[%emt 0:00:43] Threatens to win with ...Ba6.} 33. Bxe4+ {[%emt 0:00:47]} (33. Re1 $15) 33... Rxe4 $19 {[%emt 0:01:43]} ({And not} 33... dxe4 34. Qe3 $17) 34. Rxe4 {[%emt 0:00:23]} (34. Rd2 {might work better.}) 34... dxe4 $15 {[%emt 0:00:07][%mdl 4096] Endgame KQB-KQB} 35. Qc4 {[%emt 0:00:40]} Qd7 {[%emt 0:00:54] And now ...e3+ would win.} 36. Qe2 {[%emt 0:00:19]} (36. Kf2 Qd2+ 37. Kf1) 36... f5 $2 {[%emt 0:00:45]} ({Better is} 36... e3+ $1 $19 37. Kf1 Ba6 $1 {[%mdl 512]} 38. Qxa6 Qd1+ 39. Kg2 e2) 37. gxf5 $2 {[%emt 0:00:44][%mdl 8192] [#]} (37. Kg3 $11) 37... Qxf5 $2 {[%emt 0:00:08]} (37... e3+ $1 $19 38. Kh3 Qxf5+ 39. Kg3 Qg6+ 40. Kh4 Bc8) 38. Qe3 $11 {[%emt 0:00:12] The position is equal.} Qh5 {[%emt 0:00:29]} 39. Kg3 {[%emt 0:00:49]} Qg6+ {[%emt 0:00:31]} 40. Kf2 {[%emt 0:00:05]} Qc6 {[%emt 0:00:36]} 41. c4 {[%emt 0:02:15]} bxc3 {[%emt 0:01:40]} 42. Bxc3 {[%emt 0:01:43]} Qg6 {[%emt 0:13:46]} 43. Qg3 {[%emt 0:08:04]} Qf7 {[%emt 0:07:16]} 44. Ke3 {[%emt 0:07:34]} g6 {[%emt 0:01:26][%cal Bg7g6,Bg6f5,Bf5f4][%mdl 32]} 45. f5 {[%emt 0:01:37]} gxf5 {[%emt 0:00:43]} 46. Qe5 {[%emt 0:03:06]} f4+ {[%emt 0:06:16] Weighted Error Value: White=0.53/Black=0.36} 1/2-1/2

[Event "Swedish-ch MK-Elit 2022"]
[Site "Uppsala"]
[Date "2022.07.04"]
[Round "3.1"]
[White "Engqvist, Thomas"]
[Black "Furhoff, Johan"]
[Result "1-0"]
[ECO "C68"]
[WhiteElo "2330"]
[BlackElo "2348"]
[Annotator "TA"]
[PlyCount "97"]
[EventDate "2022.07.01"]
[EventType "tourn"]
[EventCountry "SWE"]
[SourceTitle "playchess.com"]
[Source "ChessBase"]
[SourceQuality "1"]
[TimeControl "40/5400+30:1800+30"]

{[%evp 10,97,4,-10,-2,-12,0,-64,-23,-36,-20,-32,19,8,23,-8,-13,-6,7,7,7,7,4,0,10,7,6,3,6,7,0,5,0,0,0,-16,13,12,26,0,0,0,0,0,5,6,4,0,0,0,39,0,18,0,42,18,23,20,21,0,0,0,95,85,187,180,657,656,670,670,664,657,657,624,590,551,592,486,29991,222,29984,29985,29985,29986,29986,29987,29987,29988,29988,245]} 1. e4 {[%emt 0:12:41]} e5 {[%emt 0:00:08]} 2. Nf3 {[%emt 0:00:11]} Nc6 {[%emt 0:00:05]} 3. Bb5 {[%emt 0:00:06]} a6 {[%emt 0:00:07]} 4. Bxc6 {[%emt 0:00:26]} dxc6 {[%emt 0:00:05]} 5. d3 {[%emt 0:00:36]} Bd6 {[%emt 0:04:32]} 6. Be3 {[%emt 0:00:43]} Ne7 {[%emt 0:01:41] C68: Ruy Lopez: Exchange Variation, sidelines.} 7. d4 {[%emt 0:01:27] [#]} exd4 $146 {[%emt 0:09:00]} ({Predecessor:} 7... Ng6 8. dxe5 Nxe5 9. Nxe5 Bxe5 10. Qxd8+ Kxd8 11. Nc3 Be6 12. O-O-O+ Ke7 {0-1 (37) Martinez Reyes,P (2406)-Aradhya,G (2236) Chess.com INT 2021}) 8. Bxd4 {[%emt 0:00:19]} (8. Qxd4 $11 O-O 9. Nbd2) 8... f6 {[%emt 0:01:47] Black is slightly better.} 9. Nbd2 {[%emt 0:04:33]} c5 {[%emt 0:04:44]} 10. Be3 {[%emt 0:03:03]} b5 {[%emt 0:05:43]} (10... Be6 $15) 11. c4 {[%emt 0:11:11]} Be6 {[%emt 0:11:24]} 12. Qe2 {[%emt 0:10:59]} O-O {[%emt 0:03:08]} 13. O-O {[%emt 0:05:42]} Ng6 {[%emt 0:03:11]} 14. cxb5 {[%emt 0:07:13]} axb5 {[%emt 0:00:54]} 15. Qxb5 {[%emt 0:00:14]} Rb8 {[%emt 0:01:14]} 16. Qa6 {[%emt 0:02:16]} Rxb2 {[%emt 0:06:46]} 17. Bxc5 {[%emt 0:01:07]} Qa8 $1 {[%emt 0:04:19]} 18. Qxa8 {[%emt 0:00:07]} Rxa8 {[%emt 0:00:06]} 19. Bxd6 {[%emt 0:00:19]} cxd6 {[%emt 0:00:09]} 20. a3 {[%emt 0:07:41]} Ra4 {[%emt 0:02:55]} 21. Rfc1 {[%emt 0:01:19]} Nf4 {[%emt 0:01:43]} 22. Rc6 {[%emt 0:04:37]} g5 {[%emt 0:00:58] Threatens to win with ...g4.} 23. Rxd6 {[%emt 0:01:41] With the idea g3.} g4 {[%emt 0:02:11]} 24. Nh4 {[%emt 0:03:18]} Kf7 {[%emt 0:02:36] And now ...Ke7 would win.} 25. Nf1 {[%emt 0:04:23]} Rxe4 {[%emt 0:05:57]} 26. Rd2 {[%emt 0:01:23]} Re2 {[%emt 0:00:42]} 27. Rxb2 {[%emt 0:00:48]} Rxb2 {[%emt 0:00:13]} 28. Ne3 {[%emt 0:01:29]} Ne2+ {[%emt 0:05:46]} 29. Kf1 {[%emt 0:00:33]} Nc3 {[%emt 0:00:08]} 30. Rc1 {[%emt 0:05:30]} Rb3 {[%emt 0:00:55]} 31. Ra1 {[%emt 0:02:27]} Rb2 {[%emt 0:01:36]} 32. a4 {[%emt 0:01:22]} Bc8 {[%emt 0:04:15]} 33. a5 {[%emt 0:00:40]} h5 {[%emt 0:00:17]} 34. Nhf5 {[%emt 0:02:41]} Ba6+ $1 {[%emt 0:01:15]} 35. Kg1 {[%emt 0:00:04]} Ne4 {[%emt 0:02:30] [#]} (35... Ne2+ $11 36. Kh1 Nf4) 36. Nd5 $1 $16 {[%emt 0:03:54]} Bb7 {[%emt 0:05:29]} (36... Nd2 $16) 37. Nc7 $18 {[%emt 0:00:18] Pair of Knights!} Nxf2 $2 {[%emt 0:03:35] [#]} (37... Kg6) 38. Nd6+ $1 {[%emt 0:01:02]} Kg6 {[%emt 0:01:21][%cal Ob7g2]} 39. Nxb7 {[%emt 0:00:05]} Rxb7 {[%emt 0:00:04]} 40. Kxf2 {[%emt 0:00:55][%cal Oa5a6] aiming for a6!} Rxc7 {[%emt 0:00:10][%mdl 4096] Endgame KR-KR} 41. a6 {[%emt 0:30:03] Strongly threatening a7.} Ra7 {[%emt 0:30:17]} 42. Ke3 {[%emt 0:00:00]} Kg5 {[%emt 0:00:00]} 43. Ra5+ {[%emt 0:00:00]} Kh4 {[%emt 0:00:00]} (43... f5 $18 44. Kd4 Kh4) 44. g3+ {[%emt 0:00:00]} Kh3 {[%emt 0:00:00]} 45. Kf2 {[%emt 0:00:00][%cal Ra5h5] White mates.} f5 {[%emt 0:00:00]} 46. Rxf5 {[%emt 0:00:00][%cal Rf5h5]} h4 {[%emt 0:00:00]} 47. Rh5 {[%emt 0:00:00][%csl Gg3][%cal Rh5h4]} Rf7+ {[%emt 0:00:00]} 48. Kg1 {[%emt 0:00:00][%csl Gg3][%cal Rh5h4]} Rh7 {[%emt 0:00:00]} 49. Rxh4+ $2 {[%emt 0:00:00] Weighted Error Value: White=0.19 (very precise) /Black=0.50} (49. a7 {mates} Rxh5 50. a8=Q hxg3 51. Qa3 Kh4 52. Qe7+ Rg5 53. hxg3+ Kxg3 54. Qxg5) 1-0